fUST/lending_fUST_20260519
["ID","MTS","AMOUNT","RATE_DAILY","PERIOD"]
[422593508,1779133846000,-2153.35,0.00013698,2]
[422593568,1779133846000,-1064.49,0.00013698,2]
[422593509,1779133846000,-2153.35,0.00013698,2]
[422593552,1779133846000,-1064.49,0.00013698,2]
[422593550,1779133846000,-1064.49,0.00013698,2]
[422593553,1779133846000,-1064.49,0.00013698,2]
[422593551,1779133846000,-1064.49,0.00013698,2]
[422593554,1779133846000,-1064.49,0.00013698,2]
[422593565,1779133846000,-1064.49,0.00013698,2]
[422593559,1779133846000,-1064.49,0.00013698,2]
[422593563,1779133846000,-1064.49,0.00013698,2]
[422593558,1779133846000,-1064.49,0.00013698,2]
[422593564,1779133846000,-1064.49,0.00013698,2]
[422593566,1779133846000,-1064.49,0.00013698,2]
[422593560,1779133846000,-1064.49,0.00013698,2]
[422593555,1779133846000,-1064.49,0.00013698,2]
[422593561,1779133846000,-1064.49,0.00013698,2]
[422593557,1779133846000,-1064.49,0.00013698,2]
[422593556,1779133846000,-1064.49,0.00013698,2]
[422593567,1779133846000,-1064.49,0.00013698,2]
[422593570,1779133846000,-1064.49,0.00013698,2]
[422593577,1779133846000,-500.0,0.00013698,2]
[422593569,1779133846000,-1064.49,0.00013698,2]
[422593575,1779133846000,-500.0,0.00013698,2]
[422593571,1779133846000,-1064.5952681,0.00013698,2]
[422593572,1779133846000,-500.0,0.00013698,2]
[422593574,1779133846000,-500.0,0.00013698,2]
[422593573,1779133846000,-500.0,0.00013698,2]
[422593511,1779133846000,-2153.35,0.00013698,2]
[422593576,1779133846000,-500.0,0.00013698,2]
[422593549,1779133846000,-1064.49,0.00013698,2]
[422593547,1779133846000,-572.47043132,0.00013698,2]
[422593562,1779133846000,-1064.49,0.00013698,2]
[422593546,1779133846000,-953.74,0.00013698,2]
[422593517,1779133846000,-2153.35,0.00013698,2]
[422593516,1779133846000,-2153.35,0.00013698,2]
[422593548,1779133846000,-1064.49,0.00013698,2]
[422593527,1779133846000,-2153.52089039,0.00013698,2]
[422593531,1779133846000,-255.88893034,0.00013698,2]
[422593521,1779133846000,-2153.35,0.00013698,2]
[422593530,1779133846000,-500.0,0.00013698,2]
[422593526,1779133846000,-2153.35,0.00013698,2]
[422593520,1779133846000,-2153.35,0.00013698,2]
[422593525,1779133846000,-2153.35,0.00013698,2]
[422593532,1779133846000,-1000.0,0.00013698,2]
[422593529,1779133846000,-500.0,0.00013698,2]
[422593519,1779133846000,-2153.35,0.00013698,2]
[422593523,1779133846000,-2153.35,0.00013698,2]
[422593524,1779133846000,-2153.35,0.00013698,2]
[422593545,1779133846000,-881.94157161,0.00013698,2]
[422593533,1779133846000,-1000.0,0.00013698,2]
[422593536,1779133846000,-1000.0,0.00013698,2]
[422593535,1779133846000,-1000.0,0.00013698,2]
[422593534,1779133846000,-1000.0,0.00013698,2]
[422593543,1779133846000,-1000.0,0.00013698,2]
[422593540,1779133846000,-1000.0,0.00013698,2]
[422593539,1779133846000,-1000.0,0.00013698,2]
[422593544,1779133846000,-1000.0,0.00013698,2]
[422593542,1779133846000,-1000.0,0.00013698,2]
[422593541,1779133846000,-1000.0,0.00013698,2]
[422593528,1779133846000,-576.58589119,0.00013698,2]
[422593537,1779133846000,-1000.0,0.00013698,2]
[422593538,1779133846000,-1000.0,0.00013698,2]
[422593619,1779133847000,-1021.47,0.00013698,2]
[422593629,1779133847000,-1021.47,0.00013698,2]
[422593614,1779133847000,-1021.47,0.00013698,2]
[422593624,1779133847000,-1021.47,0.00013698,2]
[422593620,1779133847000,-1021.47,0.00013698,2]
[422593618,1779133847000,-1021.47,0.00013698,2]
[422593615,1779133847000,-1021.47,0.00013698,2]
[422593621,1779133847000,-1021.47,0.00013698,2]
[422593612,1779133847000,-1936.5639378,0.00013698,2]
[422593617,1779133847000,-1021.47,0.00013698,2]
[422593613,1779133847000,-504.07933511,0.00013698,2]
[422593628,1779133847000,-1021.47,0.00013698,2]
[422593623,1779133847000,-1021.47,0.00013698,2]
[422593626,1779133847000,-1021.47,0.00013698,2]
[422593649,1779133847000,-664.91,0.00013698,2]
[422593631,1779133847000,-1021.47,0.00013698,2]
[422593630,1779133847000,-1021.47,0.00013698,2]
[422593632,1779133847000,-1021.47,0.00013698,2]
[422593633,1779133847000,-1021.47,0.00013698,2]
[422593634,1779133847000,-1021.47,0.00013698,2]
[422593625,1779133847000,-1021.47,0.00013698,2]
[422593636,1779133847000,-1021.47,0.00013698,2]
[422593635,1779133847000,-1021.47,0.00013698,2]
[422593638,1779133847000,-9200.0,0.00013698,2]
[422593637,1779133847000,-1021.51051698,0.00013698,2]
[422593648,1779133847000,-664.91,0.00013698,2]
[422593647,1779133847000,-664.91,0.00013698,2]
[422593639,1779133847000,-9200.0,0.00013698,2]
[422593616,1779133847000,-1021.47,0.00013698,2]
[422593627,1779133847000,-1021.47,0.00013698,2]
[422593622,1779133847000,-1021.47,0.00013698,2]
[422593581,1779133847000,-263.54,0.00013698,2]
[422593602,1779133847000,-1936.49,0.00013698,2]
[422593640,1779133847000,-9200.0,0.00013698,2]
[422593579,1779133847000,-500.0,0.00013698,2]
[422593578,1779133847000,-500.0,0.00013698,2]
[422593583,1779133847000,-500.0,0.00013698,2]
[422593593,1779133847000,-1936.49,0.00013698,2]
[422593594,1779133847000,-1936.49,0.00013698,2]
[422593596,1779133847000,-1936.49,0.00013698,2]
[422593595,1779133847000,-1936.49,0.00013698,2]
[422593582,1779133847000,-500.0,0.00013698,2]
[422593586,1779133847000,-500.0,0.00013698,2]
[422593589,1779133847000,-1936.49,0.00013698,2]
[422593585,1779133847000,-500.0,0.00013698,2]
[422593584,1779133847000,-500.0,0.00013698,2]
[422593587,1779133847000,-227.77508851,0.00013698,2]
[422593611,1779133847000,-1936.49,0.00013698,2]
[422593590,1779133847000,-1936.49,0.00013698,2]
[422593591,1779133847000,-1936.49,0.00013698,2]
[422593601,1779133847000,-1936.49,0.00013698,2]
[422593597,1779133847000,-1936.49,0.00013698,2]
[422593599,1779133847000,-1936.49,0.00013698,2]
[422593600,1779133847000,-1936.49,0.00013698,2]
[422593598,1779133847000,-1936.49,0.00013698,2]
[422593610,1779133847000,-1936.49,0.00013698,2]
[422593607,1779133847000,-1936.49,0.00013698,2]
[422593603,1779133847000,-1936.49,0.00013698,2]
[422593608,1779133847000,-1936.49,0.00013698,2]
[422593605,1779133847000,-1936.49,0.00013698,2]
[422593606,1779133847000,-1936.49,0.00013698,2]
[422593609,1779133847000,-1936.49,0.00013698,2]
[422593604,1779133847000,-1936.49,0.00013698,2]
[422593592,1779133847000,-1936.49,0.00013698,2]
[422593650,1779133847000,-664.91,0.00013698,2]
[422593665,1779133847000,-664.9263901,0.00013698,2]
[422593642,1779133847000,-664.91,0.00013698,2]
[422593683,1779133847000,-238.67455786,0.00013699,7]
[422593688,1779133847000,-759.50425199,0.00013699,7]
[422593684,1779133847000,-477.34911573,0.00013699,7]
[422593685,1779133847000,-716.02367359,0.00013699,7]
[422593689,1779133847000,-1012.67233598,0.00013699,7]
[422593687,1779133847000,-506.33616799,0.00013699,7]
[422593686,1779133847000,-253.168084,0.00013699,7]
[422593690,1779133847000,-153.55403734,0.00013699,2]
[422593691,1779133847000,-307.10807467,0.00013699,2]
[422593701,1779133847000,-151.0,0.00013699,2]
[422593692,1779133847000,-460.66211201,0.00013699,2]
[422593703,1779133847000,-151.0,0.00013699,2]
[422593702,1779133847000,-151.0,0.00013699,2]
[422593694,1779133847000,-151.0,0.00013699,2]
[422593682,1779133847000,-18866.6134111,0.00013699,2]
[422593696,1779133847000,-151.0,0.00013699,2]
[422593699,1779133847000,-151.0,0.00013699,2]
[422593700,1779133847000,-151.0,0.00013699,2]
[422593695,1779133847000,-151.0,0.00013699,2]
[422593697,1779133847000,-151.0,0.00013699,2]
[422593705,1779133847000,-151.0,0.00013699,2]
[422593704,1779133847000,-151.0,0.00013699,2]
[422593711,1779133847000,-151.0,0.00013699,2]
[422593707,1779133847000,-151.0,0.00013699,2]
[422593712,1779133847000,-151.0,0.00013699,2]
[422593710,1779133847000,-151.0,0.00013699,2]
[422593709,1779133847000,-151.0,0.00013699,2]
[422593708,1779133847000,-172.52806283,0.00013699,2]
[422593706,1779133847000,-151.0,0.00013699,2]
[422593641,1779133847000,-9200.0,0.00013698,2]
[422593693,1779133847000,-614.21614935,0.00013699,2]
[422593681,1779133847000,-341.942816,0.00013699,2]
[422593698,1779133847000,-151.0,0.00013699,2]
[422593679,1779133847000,-341.942816,0.00013699,2]
[422593680,1779133847000,-341.942816,0.00013699,2]
[422593644,1779133847000,-664.91,0.00013698,2]
[422593643,1779133847000,-664.91,0.00013698,2]
[422593646,1779133847000,-664.91,0.00013698,2]
[422593645,1779133847000,-664.91,0.00013698,2]
[422593652,1779133847000,-664.91,0.00013698,2]
[422593651,1779133847000,-664.91,0.00013698,2]
[422593653,1779133847000,-664.91,0.00013698,2]
[422593662,1779133847000,-664.91,0.00013698,2]
[422593661,1779133847000,-664.91,0.00013698,2]
[422593654,1779133847000,-664.91,0.00013698,2]
[422593660,1779133847000,-664.91,0.00013698,2]
[422593658,1779133847000,-664.91,0.00013698,2]
[422593659,1779133847000,-664.91,0.00013698,2]
[422593655,1779133847000,-664.91,0.00013698,2]
[422593656,1779133847000,-664.91,0.00013698,2]
[422593663,1779133847000,-664.91,0.00013698,2]
[422593678,1779133847000,-341.942816,0.00013699,2]
[422593657,1779133847000,-664.91,0.00013698,2]
[422593671,1779133847000,-500.0,0.00013699,2]
[422593672,1779133847000,-180.01980218,0.00013699,2]
[422593673,1779133847000,-1364.24308,0.00013699,2]
[422593669,1779133847000,-500.0,0.00013699,2]
[422593675,1779133847000,-151.0,0.00013699,2]
[422593668,1779133847000,-2577.82,0.00013699,2]
[422593676,1779133847000,-6348.288541,0.00013699,2]
[422593677,1779133847000,-2987.8604062,0.00013699,2]
[422593667,1779133847000,-156.0,0.00013699,2]
[422593664,1779133847000,-664.91,0.00013698,2]
[422593666,1779133847000,-156.0,0.00013699,2]
[422593674,1779133847000,-1000.0,0.00013699,2]
[422593734,1779133848000,-151.0,0.00013699,2]
[422593748,1779133848000,-341.942816,0.00013699,2]
[422593732,1779133848000,-151.0,0.00013699,2]
[422593746,1779133848000,-151.0,0.00013699,2]
[422593733,1779133848000,-151.0,0.00013699,2]
[422593738,1779133848000,-151.0,0.00013699,2]
[422593747,1779133848000,-341.942816,0.00013699,2]
[422593737,1779133848000,-151.0,0.00013699,2]
[422593743,1779133848000,-151.0,0.00013699,2]
[422593741,1779133848000,-151.0,0.00013699,2]
[422593740,1779133848000,-151.0,0.00013699,2]
[422593745,1779133848000,-1000.0,0.00013699,2]
[422593742,1779133848000,-151.0,0.00013699,2]
[422593744,1779133848000,-151.0,0.00013699,2]
[422593729,1779133848000,-151.0,0.00013699,2]
[422593749,1779133848000,-341.942816,0.00013699,2]
[422593739,1779133848000,-151.0,0.00013699,2]
[422593730,1779133848000,-151.0,0.00013699,2]
[422593717,1779133848000,-500.0,0.00013699,2]
[422593728,1779133848000,-151.0,0.00013699,2]
[422593755,1779133848000,-795.64687407,0.00013796,21]
[422593716,1779133848000,-151.0,0.00013699,2]
[422593715,1779133848000,-151.0,0.00013699,2]
[422593714,1779133848000,-151.0,0.00013699,2]
[422593713,1779133848000,-151.0,0.00013699,2]
[422593719,1779133848000,-151.0,0.00013699,2]
[422593718,1779133848000,-151.0,0.00013699,2]
[422593722,1779133848000,-151.0,0.00013699,2]
[422593723,1779133848000,-151.0,0.00013699,2]
[422593720,1779133848000,-151.0,0.00013699,2]
[422593721,1779133848000,-151.0,0.00013699,2]
[422593725,1779133848000,-151.0,0.00013699,2]
[422593726,1779133848000,-151.0,0.00013699,2]
[422593735,1779133848000,-151.04231312,0.00013699,2]
[422593736,1779133848000,-151.0,0.00013699,2]
[422593727,1779133848000,-151.0,0.00013699,2]
[422593724,1779133848000,-151.0,0.00013699,2]
[422593731,1779133848000,-151.0,0.00013699,2]
[422593752,1779133848000,-151.51,0.000137,2]
[422593771,1779133848000,-4866.0,0.00013967,2]
[422593754,1779133848000,-157.71,0.00013762,2]
[422593774,1779133848000,-500.0,0.00013972,2]
[422593777,1779133848000,-767.77018668,0.00013986,2]
[422593778,1779133848000,-13247.79494269,0.00013995,2]
[422593776,1779133848000,-2577.82,0.00013973,2]
[422593782,1779133848000,-23000.0,0.00014,14]
[422593780,1779133848000,-1000.0,0.00014,2]
[422593779,1779133848000,-1265.84041998,0.00013999,7]
[422593783,1779133848000,-500.0,0.00014,10]
[422593784,1779133848000,-200.0,0.00014,7]
[422593781,1779133848000,-166.0,0.00014,7]
[422593751,1779133848000,-3260.24850417,0.000137,2]
[422593787,1779133848000,-82293.18746094,0.00014,2]
[422593788,1779133848000,-472.12193392,0.0001274,2]
[422593790,1779133848000,-160.0,0.00012962,2]
[422593791,1779133848000,-20736.03962087,0.00014,2]
[422593789,1779133848000,-5000.0,0.0001287,2]
[422593792,1779133848000,300.0,0.00017808,120]
[422593785,1779133848000,-500.0,0.00014,2]
[422593775,1779133848000,-953.74,0.00013972,2]
[422593786,1779133848000,-500.0,0.00014,2]
[422593772,1779133848000,-500.0,0.00013972,2]
[422593753,1779133848000,-151.51,0.000137,2]
[422593757,1779133848000,-151.51,0.000138,2]
[422593756,1779133848000,-3260.24850417,0.000138,2]
[422593758,1779133848000,-200.0,0.000139,2]
[422593750,1779133848000,-341.942816,0.00013699,2]
[422593760,1779133848000,-1000.0,0.000139,7]
[422593763,1779133848000,-3260.24850417,0.000139,2]
[422593773,1779133848000,-500.0,0.00013972,2]
[422593761,1779133848000,-637.00300096,0.000139,2]
[422593765,1779133848000,-151.51,0.000139,2]
[422593764,1779133848000,-151.51,0.000139,2]
[422593769,1779133848000,-326.0,0.00013967,2]
[422593767,1779133848000,-325.44,0.0001391,2]
[422593766,1779133848000,-4631.62301856,0.000139,2]
[422593768,1779133848000,-3387.96853736,0.00013965,2]
[422593759,1779133848000,-203.48770625,0.000139,2]
[422593762,1779133848000,-1229.7,0.000139,2]
[422593770,1779133848000,-154.0,0.00013967,2]
[422593794,1779134088000,10000.0,0.00017808,120]
[422593795,1779134118000,10000.0,0.00017808,120]
[422593796,1779134139000,4013.94,0.00017808,120]
[422593902,1779134473000,-1500.0,7.975e-05,2]
[422593907,1779134949000,175.600568,3.878e-05,2]
[422593908,1779134950000,150.09013686,5.12e-05,2]
[422593948,1779135032000,-273.48108525,5.069e-05,2]
[422593980,1779135032000,-344.55981366,9.887e-05,2]
[422593977,1779135032000,-326.0,9.868e-05,2]
[422593961,1779135032000,-300.0,8.157e-05,2]
[422593966,1779135032000,-3602.33696867,8.758e-05,2]
[422593968,1779135032000,-1680.0,8.971e-05,2]
[422593975,1779135032000,-4448.54681733,9.381e-05,2]
[422593960,1779135032000,-300.0,8.157e-05,2]
[422593952,1779135032000,-175.600568,6.362e-05,2]
[422593958,1779135032000,-300.0,8.156e-05,2]
[422593978,1779135032000,-587.0,9.869e-05,2]
[422593953,1779135032000,-175.600568,7.605e-05,2]
[422593959,1779135032000,-300.0,8.157e-05,2]
[422593954,1779135032000,-291.99984208,7.887e-05,2]
[422593955,1779135032000,-739.06370186,7.958e-05,2]
[422593957,1779135032000,-1200.0,8.155e-05,2]
[422593951,1779135032000,-25.51043114,5.12e-05,2]
[422593949,1779135032000,-566.01503087,5.069e-05,2]
[422593950,1779135032000,-4160.50388388,5.069e-05,2]
[422593956,1779135032000,-1415.75801804,8.058e-05,2]
[422593979,1779135032000,-587.0,9.87e-05,2]
[422593976,1779135032000,-4465.60323715,9.779e-05,2]
[422593963,1779135032000,-2338.61140292,8.258e-05,2]
[422593971,1779135032000,-420.0,8.973e-05,2]
[422593991,1779135032000,-11731.22230083,9.951e-05,2]
[422593988,1779135032000,-500.0,9.95e-05,2]
[422593984,1779135032000,-500.0,9.95e-05,2]
[422593986,1779135032000,-500.0,9.95e-05,2]
[422593990,1779135032000,-1353.47284425,9.951e-05,2]
[422593987,1779135032000,-21124.3708387,9.951e-05,2]
[422593985,1779135032000,-500.0,9.95e-05,2]
[422593967,1779135032000,-4023.57882397,8.858e-05,2]
[422593981,1779135032000,-500.0,9.95e-05,2]
[422593989,1779135032000,-721.0,9.951e-05,2]
[422593965,1779135032000,-3445.84096656,8.658e-05,2]
[422593983,1779135032000,-500.0,9.95e-05,2]
[422593969,1779135032000,-420.0,8.972e-05,2]
[422593964,1779135032000,-2759.85325809,8.358e-05,2]
[422593974,1779135032000,-169.18099615,8.983e-05,2]
[422593970,1779135032000,-420.0,8.973e-05,2]
[422593962,1779135032000,-2092.45233421,8.158e-05,2]
[422593973,1779135032000,-4122.53528273,8.983e-05,2]
[422593972,1779135032000,-420.0,8.973e-05,2]
[422593982,1779135032000,-298.33986307,9.95e-05,2]
[422594395,1779135040000,-500.0,9.95e-05,2]
[422594400,1779135040000,-500.0,9.95e-05,2]
[422594392,1779135040000,-526.37160509,9.95e-05,2]
[422594402,1779135040000,-500.0,9.95e-05,2]
[422594388,1779135040000,-384.08451678,9.95e-05,2]
[422594378,1779135040000,-500.0,9.95e-05,2]
[422594386,1779135040000,-500.0,9.95e-05,2]
[422594382,1779135040000,-500.0,9.95e-05,2]
[422594376,1779135040000,-500.0,9.95e-05,2]
[422594369,1779135040000,-618.18237112,9.95e-05,2]
[422594374,1779135040000,-500.0,9.95e-05,2]
[422594365,1779135040000,-500.0,9.95e-05,2]
[422594370,1779135040000,-500.0,9.95e-05,2]
[422594363,1779135040000,-567.61150945,9.95e-05,2]
[422594372,1779135040000,-500.0,9.95e-05,2]
[422594366,1779135040000,-500.0,9.95e-05,2]
[422594406,1779135040000,-500.0,9.95e-05,2]
[422594380,1779135040000,-500.0,9.95e-05,2]
[422594410,1779135040000,-500.0,9.95e-05,2]
[422594384,1779135040000,-500.0,9.95e-05,2]
[422594412,1779135040000,-500.0,9.95e-05,2]
[422594404,1779135040000,-500.0,9.95e-05,2]
[422594437,1779135040000,-500.0,9.95e-05,2]
[422594441,1779135040000,-500.0,9.95e-05,2]
[422594433,1779135040000,-500.0,9.95e-05,2]
[422594431,1779135040000,-500.0,9.95e-05,2]
[422594435,1779135040000,-500.0,9.95e-05,2]
[422594428,1779135040000,-500.0,9.95e-05,2]
[422594422,1779135040000,-346.26240688,9.95e-05,2]
[422594426,1779135040000,-500.0,9.95e-05,2]
[422594438,1779135040000,-500.0,9.95e-05,2]
[422594420,1779135040000,-500.0,9.95e-05,2]
[422594397,1779135040000,-581.53776677,9.95e-05,2]
[422594418,1779135040000,-500.0,9.95e-05,2]
[422594390,1779135040000,-500.0,9.95e-05,2]
[422594443,1779135040000,-3967.14968487,9.951e-05,2]
[422594414,1779135040000,-500.0,9.95e-05,2]
[422594424,1779135040000,-500.0,9.95e-05,2]
[422594416,1779135040000,-500.0,9.95e-05,2]
[422594408,1779135040000,-500.0,9.95e-05,2]
[422594644,1779135042000,-254.0,0.00010856,2]
[422594637,1779135042000,-4168.46071668,0.00010834,2]
[422594639,1779135042000,-537.6845,0.00010844,2]
[422594648,1779135042000,-557.5788265,0.00010899,2]
[422594653,1779135042000,-5282.21791247,0.00010974,2]
[422594650,1779135042000,-578.20924308,0.00010954,2]
[422594659,1779135042000,-644.79446246,0.00011119,2]
[422594657,1779135042000,-621.78829552,0.00011064,2]
[422594664,1779135042000,-5000.0,0.0001129,15]
[422594666,1779135042000,-5462.41477934,0.00011372,2]
[422594678,1779135042000,-315.0,0.00012103,2]
[422594655,1779135042000,-599.60298507,0.00011009,2]
[422594661,1779135042000,-668.65185757,0.00011174,2]
[422594616,1779135042000,-4168.46071674,9.951e-05,2]
[422594646,1779135042000,-823.0,0.00010857,2]
[422594641,1779135042000,-233.23247172,0.00010844,2]
[422594631,1779135042000,-517.41148457,0.0001035,7]
[422594629,1779135042000,-4870.15413731,0.00010177,2]
[422594614,1779135042000,-1551009.13531875,9.951e-05,2]
[422594627,1779135042000,-185.183,0.00010051,2]
[422594625,1779135042000,-443.0,0.00010051,2]
[422594612,1779135042000,-110093.6490126,9.951e-05,2]
[422594622,1779135042000,-1413.0,0.00010051,2]
[422594620,1779135042000,-647.0,0.00010051,2]
[422594618,1779135042000,-2202.0,0.00010051,2]
[422594676,1779135042000,-397.11978523,0.00011887,2]
[422594634,1779135042000,-5041.84659041,0.00010576,2]
[422594668,1779135042000,-394.0,0.00011507,3]
[422594707,1779135042000,-1304.09940167,0.00013,2]
[422594674,1779135042000,-5665.65105317,0.00011771,2]
[422594672,1779135042000,-232.94754479,0.00011732,2]
[422594734,1779135042000,-74139.27455613,0.00013571,2]
[422594732,1779135042000,-5000.0,0.00013548,15]
[422594728,1779135042000,-4168.46071668,0.00013484,2]
[422594730,1779135042000,-1304.09940167,0.000135,2]
[422594718,1779135042000,-232.94754479,0.00013245,2]
[422594726,1779135042000,-1304.09940167,0.000134,2]
[422594712,1779135042000,-1304.09940167,0.000131,2]
[422594716,1779135042000,-152.0,0.00013243,7]
[422594722,1779135042000,-6432.51733455,0.00013364,2]
[422594714,1779135042000,-6606.80907013,0.00013144,2]
[422594720,1779135042000,-1304.09940167,0.000133,2]
[422594710,1779135042000,-185.0,0.00013051,2]
[422594724,1779135042000,-457.84493043,0.00013365,14]
[422594692,1779135042000,-254.0,0.00012603,3]
[422594705,1779135042000,-457.84493043,0.00012983,7]
[422594680,1779135042000,-500.0,0.00012158,2]
[422594681,1779135042000,-5882.98296826,0.00012169,2]
[422594694,1779135042000,-500.0,0.00012706,2]
[422594697,1779135042000,-457.84493043,0.00012729,2]
[422594699,1779135042000,-166.612,0.00012833,2]
[422594670,1779135042000,-4168.46071668,0.00011717,2]
[422594683,1779135042000,-500.0,0.00012432,2]
[422594690,1779135042000,-4168.46071668,0.00012601,2]
[422594701,1779135042000,-6303.55115719,0.00012965,2]
[422594703,1779135042000,-407.48258849,0.0001298,2]
[422594687,1779135042000,-6049.08419386,0.00012567,2]
[422594685,1779135042000,-161.68513202,0.00012442,2]
[422594921,1779135043000,-375.14906992,0.00013699,7]
[422594916,1779135043000,-187.57453496,0.00013699,7]
[422594933,1779135043000,-151.0,0.000137,2]
[422594931,1779135043000,-151.0,0.000137,2]
[422594929,1779135043000,-151.0,0.000137,2]
[422594938,1779135043000,-298.181936,0.0001372,2]
[422594935,1779135043000,-160.0,0.0001372,2]
[422594948,1779135043000,-967.59419429,0.0001372,2]
[422594950,1779135043000,-254.2653631,0.0001375,2]
[422594942,1779135043000,-160.0,0.0001372,2]
[422594919,1779135043000,-750.29813984,0.00013699,7]
[422594927,1779135043000,-1000.0,0.00013699,2]
[422594883,1779135043000,-157629.55268561,0.00013571,2]
[422594885,1779135043000,-254.2653631,0.00013599,2]
[422594913,1779135043000,-636.15244039,0.00013699,2]
[422594911,1779135043000,-477.1143303,0.00013699,2]
[422594909,1779135043000,-318.0762202,0.00013699,2]
[422594905,1779135043000,-256.0,0.00013699,3]
[422594903,1779135043000,-682.12154,0.00013699,2]
[422594907,1779135043000,-159.0381101,0.00013699,2]
[422594892,1779135043000,-500.0,0.00013699,2]
[422594901,1779135043000,-1000.0,0.00013699,2]
[422594896,1779135043000,-180.01980218,0.00013699,2]
[422594940,1779135043000,-436.363872,0.0001372,2]
[422594894,1779135043000,-500.0,0.00013699,2]
[422594888,1779135043000,-151.0,0.000136,2]
[422594890,1779135043000,-254.2653631,0.00013674,2]
[422594923,1779135043000,-562.72360488,0.00013699,7]
[422594944,1779135043000,-361.775893,0.0001372,2]
[422594898,1779135043000,-3174.144271,0.00013699,2]
[422594946,1779135043000,-563.551786,0.0001372,2]
[422594954,1779135043000,-14398.3398316,0.00013771,2]
[422595001,1779135043000,-151.0,0.000139,2]
[422594983,1779135043000,-151.0,0.000139,2]
[422594992,1779135043000,-151.0,0.000139,2]
[422594995,1779135043000,-151.0,0.000139,2]
[422594999,1779135043000,-151.0,0.000139,2]
[422594988,1779135043000,-151.0,0.000139,2]
[422594997,1779135043000,-254.2653631,0.000139,2]
[422594984,1779135043000,-151.0,0.000139,2]
[422595002,1779135043000,-795.19055049,0.00013982,2]
[422594990,1779135043000,-151.0,0.000139,2]
[422594986,1779135043000,-151.0,0.000139,2]
[422594993,1779135043000,-151.0,0.000139,2]
[422594981,1779135043000,-151.0,0.000139,2]
[422594925,1779135043000,-2000.0,0.00013699,7]
[422594967,1779135043000,-254.2653631,0.00013825,2]
[422594955,1779135043000,-160.0,0.00013789,2]
[422594979,1779135043000,-151.0,0.000139,2]
[422594958,1779135043000,-160.0,0.00013789,2]
[422594957,1779135043000,-838.231612,0.00013789,2]
[422594971,1779135043000,-151.0,0.000139,2]
[422594964,1779135043000,-151.0,0.000138,2]
[422594956,1779135043000,-499.115806,0.00013789,2]
[422594960,1779135043000,-350.588865,0.00013789,2]
[422594966,1779135043000,-151.0,0.000138,2]
[422594973,1779135043000,-151.0,0.000139,2]
[422594969,1779135043000,-449.67975681,0.00013887,2]
[422594975,1779135043000,-151.0,0.000139,2]
[422594977,1779135043000,-151.0,0.000139,2]
[422594962,1779135043000,-541.17773,0.00013789,2]
[422595006,1779135044000,-80586.20748858,0.00014,2]
[422595010,1779135044000,-237286.05664878,0.00014,5]
[422595008,1779135044000,-7823.87239252,0.00014,2]
[422595004,1779135044000,-937.8726748,0.00013984,7]
[422595345,1779135046000,-1998.70177163,0.00014,5]
[422595343,1779135046000,-645.06279619,0.0001372,2]
[422596521,1779136232000,-463.79575795,5.717e-05,2]
[422596522,1779136232000,-5000.0,5.775e-05,2]
[422596523,1779136232000,-271.64231889,5.863e-05,2]
[422596525,1779136232000,-320.53793629,7.863e-05,2]
[422596527,1779136232000,-300.0,0.00010652,2]
[422596526,1779136232000,-369.43355369,9.863e-05,2]
[422596524,1779136232000,-163.0764927,6.073e-05,2]
[422596529,1779136232000,-1840.16392304,0.00010653,2]
[422596528,1779136232000,-647.0,0.00010653,2]
[422596564,1779136240000,-325.69070486,0.00012352,2]